bitfinex-derivatives/quotes_ETHF0:USTF0_20251223
["timestamp","ask_amount","ask_price","bid_price","bid_amount"]
[1766484540692,3.40590923,2967.4,2966.7,0.0318]
[1766484540995,3.37410923,2967.4,2966.7,0.0318]
[1766484541298,0.0318,2967.3,2966.7,0.0318]
[1766484541801,3.4028,2967.3,2966.7,0.0318]
[1766484543698,3.371,2967.3,2966.6,3.371]
[1766484543902,0.0318,2967.2,2966.3,3.37379364]
[1766484544305,3.371,2967.3,2966.3,3.37379364]
[1766484550410,0.17171923,2967.4,2966.3,3.37379364]
[1766484550611,5.372,2967.2,2966.3,3.37379364]
[1766484550811,5.372,2967.2,2966.4,0.0316]
[1766484551115,5.372,2967.2,2966.3,3.37379364]
[1766484557215,5.54062,2967.2,2966.3,3.37379364]
[1766484558517,5.54062,2967.2,2966.4,1.20078774]
[1766484558818,9.206,2967.1,2966.4,1.20078774]
[1766484559021,9.206,2967.1,2966.4,1.18258774]
[1766484559221,9.206,2967.1,2966.3,4.57458138]
[1766484560520,5.834,2967.0,2966.3,4.57458138]
[1766484560721,3.372,2966.9,2966.3,4.57458138]
[1766484561020,3.372,2966.9,2966.4,0.032]
[1766484561624,3.372,2966.9,2966.3,4.57458138]
[1766484561821,3.372,2966.9,2966.4,0.032]
[1766484562634,3.372,2966.9,2966.3,4.57458138]
[1766484562822,3.372,2966.9,2966.4,0.032]
[1766484564133,3.372,2966.9,2966.3,3.37379364]
[1766484564314,3.404,2966.9,2966.3,3.40579364]
[1766484568628,0.032,2966.9,2966.3,3.40579364]
[1766484568829,3.404,2966.9,2966.3,3.40579364]
[1766484569030,3.372,2966.9,2966.3,3.37379364]
[1766484569232,3.404,2966.9,2966.3,3.40579364]
[1766484570837,1.26478774,2966.8,2966.1,0.0214]
[1766484571037,0.00505364,2966.7,2965.6,4.57278774]
[1766484571239,9.206,2966.6,2965.7,3.372]
[1766484571431,9.2389,2966.6,2965.7,3.4049]
[1766484571637,9.206,2966.6,2965.7,3.372]
[1766484571943,9.206,2966.6,2965.7,3.375195]
[1766484572129,0.0329,2966.5,2965.7,3.408095]
[1766484572534,9.206,2966.6,2965.7,3.408095]
[1766484572735,0.0329,2966.5,2965.7,3.408095]
[1766484573135,0.0329,2966.5,2965.7,4.60888274]
[1766484573340,9.206,2966.6,2965.7,4.60888274]
[1766484573541,0.0329,2966.5,2965.7,4.60888274]
[1766484574141,9.206,2966.6,2965.7,3.408095]
[1766484574342,0.0329,2966.5,2965.7,3.408095]
[1766484574729,9.206,2966.6,2965.7,3.408095]
[1766484574930,0.0329,2966.5,2965.7,3.408095]
[1766484575430,0.00505364,2966.7,2966.2,1.20078774]
[1766484575634,9.207,2966.6,2966.2,1.20078774]
[1766484575837,9.207,2966.6,2966.0,1.20078774]
[1766484576736,9.207,2966.6,2965.8,1.20078774]
[1766484576941,0.0329,2966.5,2965.8,0.0329]
[1766484577744,9.207,2966.6,2965.7,3.375195]
[1766484577944,0.0318,2966.4,2965.7,3.406995]
[1766484578142,3.372,2966.3,2965.7,3.406995]
[1766484578646,3.4038,2966.3,2965.7,3.406995]
[1766484579147,3.372,2966.3,2965.7,3.375195]
[1766484580950,3.372,2966.3,2965.7,4.57598274]
[1766484582044,0.00505364,2966.7,2966.1,1.20078774]
[1766484582250,3.717,2966.6,2966.1,1.20078774]
[1766484582647,3.717,2966.6,2966.1,1.23238774]
[1766484586157,0.00505364,2966.7,2966.1,1.20078774]
[1766484586358,3.372,2966.6,2966.1,1.20078774]
[1766484586759,3.372,2966.6,2966.1,1.23298774]
[1766484593162,3.372,2966.6,2966.1,0.0322]
[1766484593361,3.372,2966.6,2966.2,1.20078774]
[1766484597161,3.372,2966.6,2965.7,3.375195]
[1766484597465,3.372,2966.6,2966.1,1.20078774]
[1766484597861,0.00505364,2966.7,2966.1,1.20078774]
[1766484598064,9.207,2966.6,2966.1,1.20078774]
[1766484598262,3.372,2966.5,2966.3,1.20078774]
[1766484599262,3.372,2966.5,2966.1,1.20078774]
[1766484605168,0.00505364,2966.7,2966.1,1.20078774]
[1766484605369,9.207,2966.6,2966.1,1.20078774]
[1766484605868,9.20910001,2966.6,2966.1,1.20078774]
[1766484616192,9.207,2966.6,2965.7,3.375195]
[1766484616386,9.207,2966.6,2966.1,1.20078774]
[1766484617388,0.00210001,2966.5,2966.1,1.20078774]
[1766484618000,0.00210001,2966.5,2965.9,1.2028967]
[1766484618192,0.03310001,2966.5,2965.9,1.2028967]
[1766484618387,0.031,2966.5,2965.9,1.2007967]
[1766484624200,0.031,2966.5,2965.7,3.375195]
[1766484624403,0.00505364,2966.7,2965.7,3.375195]
[1766484624592,3.372,2966.6,2965.7,3.375195]
[1766484624996,0.0018,2966.5,2965.8,0.0018]
[1766484626396,0.0018,2966.7,2965.9,1.2025967]
[1766484626593,0.0018,2966.7,2966.0,3.372]
[1766484626790,3.372,2966.8,2966.0,3.372]
[1766484626989,0.0018,2966.7,2966.1,0.0018]
[1766484627390,0.00685364,2966.7,2966.1,0.00685364]
[1766484636208,0.00685364,2966.7,2966.1,0.00505364]
[1766484636209,0.00505364,2966.7,2966.1,0.00505364]
[1766484637603,3.37705364,2966.7,2966.1,0.00505364]
[1766484647117,3.372,2966.8,2966.2,1.2007967]
[1766484648112,3.37705364,2966.8,2966.2,1.2007967]
[1766484650612,0.00505364,2966.8,2966.2,1.2007967]
[1766484653822,3.372,2967.3,2966.5,1.2007967]
[1766484654315,0.06770001,2967.2,2966.6,0.0677]
[1766484654510,0.06770001,2967.2,2966.6,3.4397]
[1766484654713,0.07275365,2967.2,2966.6,3.4397]
[1766484656223,0.00505364,2967.2,2966.6,3.372]
[1766484662125,0.16858,2968.0,2966.7,1.2007967]
[1766484662422,0.16858,2968.0,2966.8,1.2007967]
[1766484662423,3.372,2967.9,2966.8,1.2007967]
[1766484662625,3.4399,2967.9,2966.9,3.372]
[1766484662829,3.372,2967.9,2966.9,3.372]
[1766484663020,0.0679,2967.8,2967.0,0.0679]
[1766484663227,0.00505364,2967.7,2967.0,0.0679]
[1766484663532,3.372,2967.6,2967.0,0.0679]
[1766484663732,3.372,2967.6,2966.9,3.372]
[1766484664031,3.372,2967.6,2967.0,0.0679]
[1766484664418,3.37705364,2967.6,2966.9,3.372]
[1766484664628,3.37705364,2967.6,2967.0,0.068]
[1766484665019,3.37705364,2967.6,2966.9,3.372]
[1766484665223,3.37705364,2967.6,2967.0,0.068]
[1766484665628,3.37705364,2967.6,2966.9,3.372]
[1766484665929,3.37705364,2967.6,2967.0,0.068]
[1766484666933,3.37705364,2967.6,2966.9,3.372]
[1766484667231,3.37705364,2967.6,2967.0,0.068]
[1766484667633,0.00505364,2967.6,2967.0,0.068]
[1766484667833,0.00505364,2967.6,2966.9,3.372]
[1766484668034,0.00505364,2967.6,2967.0,0.068]
[1766484673335,0.00505364,2967.6,2966.9,3.372]
[1766484673736,3.371,2967.5,2966.9,3.372]
[1766484674134,3.439,2967.5,2966.9,2.7105]
[1766484676235,3.371,2967.5,2966.9,2.6425]
[1766484677930,0.00505364,2967.6,2966.9,2.6425]
[1766484678133,3.37605364,2967.6,2966.9,2.6425]
[1766484678932,3.37605364,2967.6,2967.0,0.08259999]
[1766484679234,3.37605364,2967.6,2966.9,2.6425]
[1766484680035,3.37605364,2967.6,2967.0,1.19999735]
[1766484684730,3.37605364,2967.6,2965.6,4.22643095]
[1766484684731,1.19999735,2967.2,2965.6,8.429]
[1766484684940,1.19999735,2967.0,2966.0,3.371]
[1766484685348,3.371,2967.1,2966.0,3.371]
[1766484685641,0.0826,2967.0,2966.0,4.65359734]
[1766484689846,0.0826,2967.0,2966.0,3.45359999]
[1766484690041,0.0826,2967.0,2966.2,1.19999735]
[1766484690443,3.371,2967.1,2966.2,1.19999735]
[1766484690640,0.0825,2967.0,2966.2,1.19999735]
[1766484691037,3.371,2967.1,2966.2,1.19999735]
[1766484691238,0.0825,2967.0,2966.2,1.19999735]
[1766484691643,3.371,2967.1,2966.2,1.19999735]
[1766484691950,0.0825,2967.0,2966.2,1.19999735]
[1766484692351,3.371,2967.1,2966.2,1.19999735]
[1766484692650,0.0825,2967.0,2966.2,1.19999735]
[1766484692850,0.0825,2967.0,2966.1,0.08755363]
[1766484693054,3.371,2967.1,2966.1,1.20505099]
[1766484693248,0.0825,2967.0,2966.1,1.20505099]
[1766484693454,0.0825,2967.0,2966.1,0.00505364]
[1766484693658,3.371,2967.1,2966.1,0.08755363]
[1766484694757,3.371,2967.1,2966.2,1.19999735]
[1766484694959,0.0825,2967.0,2966.2,1.19999735]
[1766484695355,0.0825,2966.9,2966.2,1.28249734]
[1766484695658,3.372,2966.8,2966.2,1.28249734]
[1766484695858,3.4545,2966.8,2966.2,1.19999735]
[1766484696156,3.372,2966.8,2966.2,1.19999735]
[1766484701958,3.372,2966.8,2966.1,0.00505364]
[1766484703265,1.19999735,2967.1,2966.1,0.00505364]
[1766484703569,4.584,2967.0,2966.1,0.00505364]
[1766484704471,4.584,2967.0,2966.1,1.20505099]
[1766484705472,0.16861,2967.5,2966.3,1.19999735]
[1766484705672,3.7,2967.4,2966.3,1.19999735]
[1766484706369,0.0825,2967.3,2966.3,1.19999735]
[1766484706574,9.207,2967.2,2966.3,1.19999735]
[1766484709672,9.207,2967.2,2966.1,0.00505364]
[1766484709673,9.207,2967.2,2966.1,1.20505099]
[1766484709875,10.40699735,2967.2,2966.1,1.20505099]
[1766484710078,0.015,2967.1,2966.1,1.22005099]
[1766484710477,9.207,2967.0,2966.1,1.20505099]
[1766484710679,9.207,2967.0,2966.1,0.00505364]
[1766484711069,0.015,2966.9,2966.1,0.00505364]
[1766484711270,9.207,2967.0,2966.1,0.00505364]
[1766484722184,0.16862,2967.2,2966.1,1.20505099]
[1766484722393,5.835,2966.9,2966.1,1.20505099]
[1766484722591,3.372,2966.8,2966.1,1.20505099]
[1766484726193,0.16862,2967.2,2966.1,1.20505099]
[1766484726490,9.207,2967.1,2966.1,1.20505099]
[1766484726888,0.0146,2967.0,2966.1,1.21965098]
[1766484727792,9.207,2967.1,2966.1,1.21965098]
[1766484727993,0.0146,2967.0,2966.1,1.21965098]
[1766484728783,9.207,2967.1,2966.1,1.20505099]
[1766484728983,0.0146,2967.0,2966.1,1.21965098]
[1766484730685,9.207,2967.1,2966.1,1.20505099]
[1766484730885,0.0146,2967.0,2966.1,1.20505099]
[1766484731794,9.2216,2966.9,2966.3,1.19999735]
[1766484731995,9.207,2966.9,2966.3,1.19999735]
[1766484732698,0.16862,2967.2,2966.3,1.19999735]
[1766484732891,3.7856,2967.1,2966.3,1.19999735]
[1766484733399,3.771,2967.1,2966.3,1.19999735]
[1766484733593,0.0146,2967.0,2966.3,4.57199735]
[1766484733996,3.372,2967.1,2966.3,4.57199735]
[1766484740006,3.372,2967.1,2966.3,3.372]
[1766484741006,0.00505364,2967.6,2966.3,3.372]
[1766484741306,3.372,2967.5,2966.3,3.372]
[1766484741604,3.045,2967.4,2966.3,3.372]
[1766484742300,3.045,2967.4,2965.5,1.20052569]
[1766484742301,1.20052569,2967.3,2963.7,7.85393654]
[1766484742514,1.20052569,2965.7,2963.9,3.372]
[1766484742696,1.20052569,2965.4,2964.0,3.372]
[1766484743001,4.05,2965.3,2963.8,44.172]
[1766484743393,0.00505364,2964.8,2964.3,0.00505364]
[1766484743600,3.372,2964.7,2964.3,0.00505364]
[1766484744602,0.00505364,2964.8,2964.3,0.00505364]
[1766484744802,2.4956,2964.9,2964.4,1.20052569]
[1766484744999,3.401,2965.0,2964.4,1.20052569]
[1766484745201,3.401,2965.0,2964.3,1.20557933]
[1766484745809,0.00505364,2964.9,2964.3,1.20557933]
[1766484748312,3.401,2965.0,2964.3,1.20557933]
[1766484748510,3.373,2965.0,2964.3,1.20557933]
[1766484749415,0.00336918,2964.9,2964.3,1.20557933]
[1766484756325,0.00336918,2964.9,2964.3,0.00505364]
[1766484764022,3.37736918,2964.9,2964.3,0.00505364]
[1766484764221,3.37736918,2964.9,2964.3,1.20557933]
[1766484764721,3.37736918,2964.9,2964.3,0.00505364]
[1766484766729,0.00378042,2965.3,2964.3,0.00505364]
[1766484766931,3.374,2965.2,2964.3,0.00505364]
[1766484768322,3.374,2965.1,2964.3,0.00505364]
[1766484769130,3.374,2965.0,2964.3,0.00505364]
[1766484770932,0.00378042,2965.3,2964.4,3.374]
[1766484771135,3.374,2965.2,2964.4,3.374]
[1766484776543,0.00378042,2965.3,2964.4,3.374]
[1766484776837,3.374,2965.2,2964.4,3.374]
[1766484782943,0.00378042,2965.3,2964.4,3.374]
[1766484783144,3.374,2965.2,2964.4,3.374]
[1766484785046,0.00378042,2965.3,2964.4,3.374]
[1766484785247,9.213,2965.2,2964.4,3.374]
[1766484785444,0.00378042,2965.3,2964.4,3.374]
[1766484785645,3.374,2965.5,2964.8,1.20052569]
[1766484785844,3.374,2965.5,2964.7,3.374]
[1766484786045,3.374,2965.5,2964.3,14.35305364]
[1766484786046,3.374,2965.5,2964.8,4.57452569]
[1766484786749,3.37805599,2965.5,2964.8,4.57452569]
[1766484796650,1.20052569,2966.6,2964.8,4.57452569]
[1766484796855,4.147,2966.5,2965.1,1.20052569]
[1766484797156,4.147,2966.5,2965.1,4.57452569]
[1766484797556,0.16865,2966.7,2965.4,1.20052569]
[1766484797744,9.212,2966.6,2965.4,1.20052569]
[1766484798648,9.212,2966.6,2965.1,3.374]
[1766484798848,9.212,2966.6,2965.2,1.20052569]
[1766484801963,10.41327074,2966.6,2965.4,1.20127074]
[1766484802462,1.20127074,2966.6,2965.4,1.20127074]
[1766484802657,9.211,2966.5,2965.4,1.20127074]
[1766484802862,0.00308136,2966.7,2965.6,1.20127074]
[1766484803162,5.838,2966.5,2965.9,0.00505364]
[1766484803364,5.838,2966.5,2965.9,0.00829101]
[1766484803763,9.211,2966.4,2965.6,1.20127074]
[1766484803958,5.838,2966.3,2965.6,1.20127074]
[1766484804163,9.211,2966.3,2965.6,1.20127074]
[1766484804865,0.00505364,2966.2,2965.7,0.00505364]
[1766484805065,9.211,2966.3,2965.7,0.00505364]
[1766484807473,3.373,2966.3,2965.8,1.20127074]
[1766484807969,3.373,2966.3,2965.7,1.20127074]
[1766484808769,3.37805364,2966.3,2965.7,1.21043554]
[1766484809973,0.00505364,2966.3,2965.7,1.21043554]
[1766484810165,2.78051644,2966.3,2965.7,1.21043554]
[1766484811172,0.00308136,2966.7,2965.7,1.21043554]
[1766484811373,9.21,2966.6,2965.7,1.21043554]
[1766484811773,9.21,2966.6,2965.9,1.20127074]
[1766484813765,0.00308136,2966.7,2965.9,1.20127074]
[1766484813961,9.21,2966.6,2965.9,1.20127074]
[1766484815162,9.21,2966.6,2965.7,0.0091648]
[1766484815362,9.21,2966.6,2965.7,1.21043554]
[1766484818573,9.21,2966.6,2965.5,2.58343554]
[1766484818877,9.21,2966.6,2965.7,1.20127074]
[1766484819677,0.00505364,2966.4,2965.9,0.00505364]
[1766484827888,3.37705364,2966.4,2966.0,1.20127074]
[1766484830094,0.00505364,2966.4,2966.0,1.20127074]
[1766484830390,3.37705364,2966.4,2966.0,1.20127074]
[1766484830592,0.00505364,2966.4,2966.0,1.20127074]
[1766484830783,3.37705364,2966.4,2966.0,1.20127074]
[1766484831189,3.37705364,2966.4,2965.9,0.00505364]
[1766484833194,3.04656251,2966.4,2965.9,0.00505364]
[1766484833395,0.00308136,2966.7,2965.9,0.00505364]
[1766484833594,9.208,2966.6,2965.9,0.00505364]
[1766484834195,0.159,2966.5,2965.9,0.00505364]
[1766484839102,9.208,2966.6,2965.9,0.00505364]
[1766484841199,1.20127074,2966.1,2965.1,3.372]
[1766484841401,3.372,2966.0,2965.1,4.57327074]
[1766484841801,1.36047074,2965.9,2965.1,2.7913]
[1766484842006,1.20127074,2965.7,2964.6,3.372]
[1766484842303,0.00505364,2965.4,2964.6,3.37595386]
[1766484842505,3.372,2965.3,2964.6,3.37595386]
[1766484843102,0.16867,2966.4,2965.1,1.20127074]
[1766484843302,10.18077074,2966.3,2965.1,1.20127074]
[1766484843706,1.20127074,2966.1,2965.1,1.20127074]
[1766484843904,3.373,2966.0,2965.1,1.20127074]
[1766484844103,0.00505364,2965.8,2965.0,0.2359]
[1766484844305,9.21,2965.7,2965.0,0.2359]
[1766484847712,9.21,2965.7,2965.1,1.20127074]
[1766484848216,9.21,2965.7,2964.9,4.57427074]
[1766484850417,0.00505364,2965.8,2964.9,4.57427074]
[1766484850613,3.373,2965.7,2964.9,4.57427074]
[1766484851019,0.2358,2965.6,2964.9,4.81007074]
[1766484851417,3.373,2965.7,2964.9,4.81007074]
[1766484851620,0.2358,2965.6,2964.9,4.81007074]
[1766484852118,3.373,2965.7,2964.9,4.81007074]
[1766484852317,0.2358,2965.6,2964.9,4.81007074]
[1766484852917,8.433,2966.9,2965.0,0.2358]
[1766484853218,9.21,2966.6,2965.4,1.20127074]
[1766484853606,0.2359,2966.5,2965.4,1.20127074]
[1766484853809,9.211,2966.4,2965.4,1.20127074]
[1766484854305,0.2359,2966.3,2965.5,0.2359]
[1766484854920,9.211,2966.4,2965.5,0.2359]
[1766484855117,9.211,2966.4,2965.4,1.20127074]
[1766484855118,0.2359,2966.3,2965.4,1.20127074]
[1766484855620,9.211,2966.4,2965.4,1.43717074]
[1766484855818,9.211,2966.4,2965.4,1.20127074]
[1766484862031,9.211,2966.4,2965.3,3.373]
[1766484863229,5.837,2966.3,2965.3,3.373]
[1766484863429,3.373,2966.2,2965.3,3.373]
[1766484863730,3.6088,2966.2,2965.4,0.2358]
[1766484863930,3.373,2966.2,2965.4,0.2358]
[1766484864130,0.2358,2966.1,2965.3,3.373]
[1766484864538,0.2358,2966.1,2965.4,0.2358]
[1766484865140,0.2358,2966.1,2965.3,3.373]
[1766484865331,0.2358,2966.1,2965.4,0.2357]
[1766484865735,0.2358,2966.1,2965.3,3.373]
[1766484866032,0.2358,2966.1,2965.4,0.23559999]
[1766484867343,3.373,2966.2,2965.3,3.373]
[1766484867539,3.6086,2966.2,2965.4,0.23559999]
[1766484868247,3.373,2966.2,2965.3,3.373]
[1766484868542,0.2356,2966.1,2965.4,0.23559999]
[1766484873047,0.2356,2966.1,2965.4,0.21155105]
[1766484879050,3.373,2966.2,2965.3,3.373]
[1766484879250,0.02404894,2966.0,2965.3,3.373]
[1766484880350,3.373,2966.2,2965.3,3.373]
[1766484880550,0.0841,2966.1,2965.4,0.0841]
[1766484881049,3.373,2966.0,2965.4,0.0841]
[1766484881948,3.373,2966.0,2965.3,3.373]
[1766484882147,3.373,2966.0,2965.4,0.0841]
[1766484882549,3.373,2966.0,2965.3,3.373]
[1766484882848,3.373,2966.0,2965.4,0.0841]
[1766484883256,3.373,2966.0,2965.3,3.373]
[1766484886053,1.2013174,2966.6,2965.3,3.373]
[1766484886254,5.837,2966.2,2965.3,3.373]
[1766484886455,3.373,2966.1,2965.3,3.373]
[1766484886657,3.4571,2966.1,2965.4,0.0841]
[1766484888357,3.4571,2966.1,2965.3,3.373]
[1766484888555,3.4571,2966.1,2965.4,0.0841]
[1766484891459,3.373,2966.1,2965.3,3.373]
[1766484891658,0.0841,2966.0,2965.4,0.0841]
[1766484897459,0.02404894,2965.9,2965.3,3.373]
[1766484897663,3.373,2966.1,2965.3,3.373]
[1766484897867,0.00308136,2966.7,2965.3,3.373]
[1766484898166,0.0775,2966.1,2965.4,0.0775]
[1766484898366,3.373,2966.2,2965.3,3.373]
[1766484898564,0.078,2966.1,2965.4,0.078]
[1766484898761,3.373,2966.5,2965.5,1.2013174]
[1766484898968,3.373,2966.5,2965.6,3.373]
[1766484899161,0.078,2966.4,2965.6,3.451]
[1766484899368,3.373,2966.5,2965.6,3.451]
[1766484899369,3.373,2966.5,2965.6,3.373]
[1766484899666,3.4525,2966.5,2965.7,0.0795]
[1766484900272,3.4525,2966.5,2965.6,3.373]
[1766484900567,3.4525,2966.5,2965.7,0.0795]
[1766484901370,3.4525,2966.5,2965.6,3.373]
[1766484901564,3.4525,2966.5,2965.7,0.0794]
[1766484901967,3.373,2966.5,2965.8,1.2013174]
[1766484902162,3.373,2966.5,2965.9,3.373]
[1766484902661,5.84008136,2966.7,2965.9,3.3848]
[1766484902662,0.00308136,2966.7,2965.9,3.3848]
[1766484902866,3.373,2966.6,2965.9,3.373]
[1766484903064,3.3848,2966.6,2966.0,0.0118]
[1766484903369,3.373,2966.6,2966.0,0.0118]
[1766484903562,3.373,2966.6,2965.9,3.373]
[1766484903775,3.373,2966.6,2966.0,0.0026]
[1766484904869,3.373,2966.7,2966.1,0.0026]
[1766484905070,3.373,2966.7,2965.9,3.373]
[1766484905770,3.37556526,2966.7,2965.9,3.373]
[1766484910364,1.2013174,2966.6,2965.4,4.372]
[1766484910773,3.37556526,2966.7,2965.4,4.372]
[1766484910976,0.022,2966.6,2965.5,0.022]
[1766484911363,0.022,2966.5,2965.6,0.022]
[1766484911572,3.372,2966.4,2965.6,3.394]
[1766484911772,3.372,2966.4,2965.6,3.372]
[1766484916881,4.85,2966.6,2965.6,3.372]
[1766484917080,3.372,2966.4,2965.7,0.078]
[1766484917678,0.0219,2966.3,2965.7,0.0219]
[1766484918992,3.372,2966.4,2965.6,3.372]
[1766484919185,0.0219,2966.3,2965.7,0.0219]
[1766484923487,3.372,2966.4,2965.6,3.372]
[1766484928593,1.20373743,2966.7,2965.6,3.372]
[1766484928798,4.7739,2966.6,2965.7,0.0219]
[1766484929200,4.752,2966.6,2965.6,3.372]
[1766484929399,0.0219,2966.5,2965.7,0.0219]
[1766484929798,0.0219,2966.5,2965.6,3.372]
[1766484930002,0.0219,2966.5,2965.7,0.0219]
[1766484930296,1.20117217,2966.1,2965.6,3.249]
[1766484930502,4.57317217,2966.3,2965.6,3.2709]
[1766484930891,4.57317217,2966.3,2965.6,3.249]
[1766484942511,3.372,2966.3,2965.6,3.249]
[1766484951617,5.837,2966.5,2965.6,3.249]
[1766484951919,0.0243,2966.3,2965.7,0.0243]
[1766484952110,3.3159,2966.4,2965.7,0.0243]
[1766484952313,3.3159,2966.4,2965.6,3.249]
[1766484952512,3.3402,2966.4,2965.7,0.0243]
[1766484956521,3.3159,2966.4,2965.6,3.249]
[1766484956722,0.0254,2966.3,2965.7,0.0254]
[1766484959226,4.51707217,2966.4,2965.6,3.249]
[1766484961727,3.3159,2966.4,2965.6,3.249]
[1766484971637,4.51707217,2966.4,2965.6,3.249]
[1766484972038,1.20117217,2966.2,2965.6,3.249]
[1766484972240,3.372,2966.1,2965.6,3.249]
[1766484974242,3.372,2966.1,2965.4,4.372]
[1766484974243,9.209,2966.1,2965.4,4.372]
[1766484976735,1.20117217,2966.0,2965.3,3.372]
[1766484980954,1.20117217,2965.8,2965.3,3.372]
[1766484981144,3.373,2965.7,2965.1,0.004]
[1766484981344,3.373,2965.7,2965.0,3.373]
[1766484987350,1.20186591,2966.0,2965.0,3.373]
[1766484987546,8.305,2965.9,2965.0,3.373]
[1766484987747,8.305,2965.9,2965.1,0.004]
[1766484988248,0.004,2965.8,2965.0,3.373]
[1766484988557,3.373,2965.7,2965.0,3.373]
[1766484988761,3.373,2965.7,2965.1,0.004]
[1766484989249,3.377,2965.7,2965.1,0.004]
[1766484994964,0.004,2965.7,2965.1,0.004]
[1766484995156,3.373,2965.6,2965.1,0.004]
[1766484995352,3.373,2965.6,2965.0,3.373]
[1766484995660,3.373,2965.6,2965.0,3.37409999]
[1766484995661,3.3741,2965.6,2965.0,3.37409999]
[1766484996760,0.0011,2965.6,2965.0,3.37409999]
[1766484996958,3.3741,2965.6,2965.0,3.37409999]
[1766484997264,3.373,2965.6,2965.0,3.373]
[1766484997453,3.373,2965.6,2965.1,0.00109999]
[1766484998162,3.373,2965.6,2965.0,3.373]
[1766484998365,3.373,2965.6,2965.0,3.37409999]
[1766484998962,3.373,2965.6,2965.0,3.373]
[1766485002262,3.373,2965.6,2965.0,2.72947821]
[1766485002859,3.373,2965.5,2965.0,2.72947821]
[1766485003569,3.373,2965.5,2965.0,2.74347821]
[1766485005064,1.20186591,2966.2,2965.0,2.74347821]
[1766485005364,9.22500001,2966.1,2965.0,2.74347821]
[1766485005754,9.211,2966.1,2965.0,2.39077821]
[1766485005955,1.20186591,2965.9,2965.0,2.39077821]
[1766485006269,3.373,2965.8,2965.0,2.39077821]
[1766485006467,3.38700001,2965.8,2965.0,2.39077821]
[1766485006666,3.373,2965.8,2965.0,2.39077821]
[1766485007463,1.20186591,2965.6,2964.7,0.00505364]
[1766485007670,9.211,2965.5,2964.7,0.00505364]
[1766485008473,0.16869,2966.0,2964.8,0.0208]
[1766485008761,3.53,2965.9,2964.8,3.3938]
[1766485008968,3.53,2965.9,2964.8,3.373]
[1766485009168,0.0208,2965.8,2964.9,0.0208]
[1766485011671,3.373,2965.7,2964.9,0.0208]
[1766485012168,3.373,2965.7,2964.8,3.373]
[1766485012367,3.3938,2965.7,2964.9,0.0208]
[1766485012870,3.3938,2965.7,2964.8,3.373]
[1766485013070,3.3938,2965.7,2964.9,0.0197]
[1766485013569,3.3938,2965.7,2964.8,3.373]
[1766485013763,3.3938,2965.7,2964.9,0.0197]
[1766485014067,3.373,2965.6,2964.9,0.0197]
[1766485014269,3.373,2965.6,2964.8,3.373]
[1766485014467,3.373,2965.6,2964.9,0.0197]
[1766485014969,3.373,2965.6,2964.8,3.373]
[1766485015169,3.373,2965.6,2964.9,0.0197]
[1766485015964,3.373,2965.6,2964.8,3.373]
[1766485016268,3.373,2965.6,2964.9,0.0197]
[1766485017070,3.373,2965.6,2964.8,3.373]
[1766485017270,3.373,2965.6,2964.9,0.0197]
[1766485017768,3.373,2965.6,2964.8,3.373]
[1766485017969,3.373,2965.6,2964.9,0.0197]
[1766485018561,3.373,2965.6,2964.8,3.373]
[1766485018764,3.39270001,2965.6,2964.9,0.0197]
[1766485018966,3.373,2965.6,2964.8,3.373]
[1766485019773,0.16869,2966.0,2964.8,3.373]
[1766485019967,3.54370001,2965.9,2964.9,0.0197]
[1766485020371,3.524,2965.9,2964.8,3.373]
[1766485020668,0.01970001,2965.8,2964.9,0.0197]
[1766485023471,3.524,2965.9,2964.8,3.373]
[1766485026573,0.16866,2966.5,2964.8,3.373]
[1766485026775,1.20186591,2966.3,2964.8,3.373]
[1766485027067,9.212,2966.2,2964.8,3.373]
[1766485027375,9.212,2966.1,2964.9,0.0197]
[1766485027774,3.39270001,2966.0,2964.8,3.373]
[1766485028273,3.373,2966.0,2964.9,0.0197]
[1766485029373,0.01970001,2965.9,2964.8,3.373]
[1766485029777,3.373,2966.0,2964.9,0.0197]
[1766485030076,1.20186591,2966.3,2964.9,0.0197]
[1766485030276,0.01970001,2965.9,2964.8,3.373]
[1766485030575,3.373,2965.8,2964.8,3.373]
[1766485030779,3.373,2965.8,2964.9,0.0197]
[1766485031274,3.373,2965.8,2964.8,3.373]
[1766485031574,3.39270001,2965.8,2964.9,0.0197]
[1766485032276,3.39270001,2965.8,2964.8,3.373]
[1766485032573,3.39270001,2965.8,2964.9,0.0197]
[1766485033078,3.39270001,2965.8,2964.8,3.373]
[1766485033269,3.39270001,2965.8,2964.9,0.0197]
[1766485035378,3.373,2965.8,2964.8,3.373]
[1766485035579,0.01970001,2965.7,2964.9,0.0197]
[1766485035779,3.373,2965.8,2964.9,0.0197]
[1766485035979,1.20186591,2966.3,2964.8,3.373]
[1766485036181,0.01970001,2965.7,2964.9,0.0197]
[1766485036573,0.01970001,2965.7,2964.8,3.373]
[1766485036770,0.01970001,2965.7,2964.9,0.0197]
[1766485037476,0.01970001,2965.7,2964.8,3.373]
[1766485037681,3.373,2965.8,2964.9,0.0197]
[1766485038081,0.01970001,2965.7,2964.8,3.373]
[1766485038280,3.373,2965.8,2964.8,3.373]
[1766485039077,3.39270001,2965.8,2964.9,0.0197]
[1766485039276,3.373,2966.0,2965.0,6.29286591]